[Event "Teplice Open 2022"]
[Site "Teplice"]
[Date "2022.06.24"]
[Round "7.6"]
[White "Hilby, Craig"]
[Black "Fridman, Daniel"]
[Result "1-0"]
[ECO "A11"]
[WhiteElo "2420"]
[BlackElo "2605"]
[Annotator "TA"]
[PlyCount "233"]
[EventDate "2022.06.18"]
[EventType "swiss"]
[EventCountry "CZE"]
[SourceTitle "playchess.com"]
[Source "ChessBase"]
[SourceQuality "1"]
[TimeControl "40/5400+30:1800+30"]

{[%evp 43,233,738,904,912,759,188,340,112,101,101,114,81,98,99,307,310,300,290,250,93,291,291,291,291,291,291,291,291,291,291,472,472,472,472,472,472,472,472,472,472,472,472,472,472,472,472,29976,4902,3826,3826,4025,0,1548,0,1452,644,534,472,472,0,472,472,472,458,29980,29981,29978,4724,2081,0,29948,1231,1238,1238,1238,1238,1238,1231,1227,1209,1216,0,458,0,1216,1216,1216,1209,1209,1180,1173,1156,1154,1117,1085,1040,943,943,943,869,846,839,831,825,813,806,798,0,776,0,713,603,878,560,752,538,538,538,1202,1078,1056,994,2647,2751,12825,12827,12835,12793,12108,11309,29941,12850,7161,855,29945,741,9798,7237,7530,0,6240,5945,3814,745,1754,0,5254,5217,1764,946,771,823,1445,1155,988,1411,1351,1132,1052,1052,5302,767,1209,0,5308,769,781,734,699,0,693,393,5139,5120,5181,4465,7340,7322,6188,797,569,0,5120,5113,5091,5091,4241,3494,29981,29982,29987,29988]} 1. c4 {[%emt 0:00:02]} Nf6 {[%emt 0:16:26]} 2. g3 {[%emt 0:00:16]} c6 {[%emt 0:00:42]} 3. Bg2 {[%emt 0:00:49]} d5 {[%emt 0:00:07]} 4. Nf3 {[%emt 0:01:26]} dxc4 {[%emt 0:00:14]} 5. a4 {[%emt 0:02:34]} Bf5 {[%emt 0:05:28]} 6. Na3 {[%emt 0:01:59]} Qd5 {[%emt 0:01:48]} 7. Nh4 {[%emt 0:06:15]} Be4 {[%emt 0:00:08]} 8. f3 {[%emt 0:00:06]} Bg6 {[%emt 0:00:07]} 9. e4 {[%emt 0:22:51]} Qc5 {[%emt 0:06:28]} 10. Qe2 {[%emt 0:00:44]} Na6 {[%emt 0:02:28]} 11. Nxc4 {[%emt 0:08:35]} Nb4 {[%emt 0:01:28]} 12. d3 {[%emt 0:05:00]} Qd4 {[%emt 0:00:50]} 13. Bf1 {[%emt 0:00:21]} e5 {[%emt 0:05:57]} 14. Be3 {[%emt 0:01:41]} Qd8 {[%emt 0:00:11]} 15. Rd1 {[%emt 0:05:43]} Nd7 {[%emt 0:10:36]} 16. Bh3 {[%emt 0:00:15]} Be7 {[%emt 0:07:07]} 17. d4 {[%emt 0:01:56]} Qc7 {[%emt 0:03:51]} 18. dxe5 {[%emt 0:09:29]} Nxe5 {[%emt 0:06:53]} 19. Bf4 {[%emt 0:01:42]} f6 {[%emt 0:03:19]} 20. Rd7 {[%emt 0:00:33]} Qb8 {[%emt 0:00:33]} 21. Nxe5 {[%emt 0:04:04]} fxe5 {[%emt 0:00:07]} 22. Qc4 {[%emt 0:01:26]} Nd3+ {[%emt 0:04:20]} 23. Qxd3 {[%emt 0:16:32]} exf4 {[%emt 0:00:11]} 24. Qb3 $2 {[%emt 0:00:13]} (24. Qd4 Bf6 25. Qc4) 24... Kf8 $2 {[%emt 0:10:13]} (24... Qe5 {keeps fighting.} 25. Qxb7 (25. Nxg6 hxg6 26. Qxb7 Kf7 $16) 25... Kf7 26. gxf4 Qc5) 25. Nxg6+ $2 {[%emt 0:00:56]} (25. Rxb7 Qe5 $18) (25. Qc3 $18 {has better winning chances.} fxg3 26. Ke2 $1) 25... hxg6 $16 {[%emt 0:00:08]} 26. Qe6 {[%emt 0:00:15]} (26. Rxb7 Qd6 27. Qe6 Qc5 $15) 26... Qe8 {[%emt 0:00:15]} 27. Ke2 {[%emt 0:00:35]} fxg3 {[%emt 0:01:13]} 28. hxg3 {[%emt 0:02:02]} Bc5 $2 {[%emt 0:07:48] [#]} (28... Qf7 $16 29. Rc1 Rb8) 29. Qc4 $1 $18 {[%emt 0:00:43]} b6 {[%emt 0:00:23]} 30. b4 {[%emt 0:01:28]} ({Less strong is} 30. Qc3 Qxd7 31. Bxd7 Rxh1 $16) 30... Be7 {[%emt 0:00:08]} (30... Rxh3 $2 31. Rxh3 Qxd7 32. Rh8+ Ke7 33. Rxa8 $18) 31. Qxc6 $2 {[%emt 0:03:08]} (31. Rdd1 $18 {Black must now prevent Bd7.} Rh6 32. Be6) 31... Bxb4 $2 {[%emt 0:01:39]} (31... Rh6 $16 {is a better defense.}) 32. Be6 $18 {[%emt 0:02:11]} Rxh1 {[%emt 0:00:36]} 33. Rf7+ {[%emt 0:00:05]} Qxf7 {[%emt 0:00:06]} 34. Bxf7 {[%emt 0:00:06]} Rh2+ {[%emt 0:03:52]} 35. Kf1 {[%emt 0:00:12]} Rd8 {[%emt 0:00:39]} 36. Bd5 {[%emt 0:00:04]} Bd6 $2 {[%emt 0:01:16]} (36... Rh5 {was called for.} 37. Qxg6 Rdxd5 38. exd5 Rxd5) 37. e5 $18 {[%emt 0:00:20]} ({Not} 37. Qb7 Be7 38. Qc6 (38. Qxa7 Rc8 $11) 38... Rd6 39. Qc8+ Bd8 $18) 37... Bxe5 {[%emt 0:00:15]} 38. Qe6 {[%emt 0:00:03]} Rxd5 {[%emt 0:00:08]} 39. Qxd5 {[%emt 0:00:03]} Bxg3 {[%emt 0:00:32]} 40. Qa8+ {[%emt 0:00:43]} Kf7 {[%emt 0:00:06]} 41. Qxa7+ {[%emt 0:30:16]} Kg8 {[%emt 0:03:17]} 42. Qxb6 {[%emt 0:00:00]} Kh7 {[%emt 0:00:07]} 43. a5 {[%emt 0:00:00]} Ra2 {[%emt 0:00:05]} 44. a6 {[%emt 0:00:00]} Bf2 {[%emt 0:00:06]} (44... Ra1+ $18 45. Kg2 Bb8 46. Qxb8 Ra2+ 47. Kg3 Rxa6) 45. Qe6 {[%emt 0:00:00]} (45. Qxf2 $142 Ra1+ 46. Kg2 g5 47. a7 Kg6 48. Qc2+ Kf7 49. Qf5+ Kg8 50. Qd5+ Kh7 51. a8=Q) 45... Rd2 $18 {[%emt 0:00:38]} 46. Qh3+ {[%emt 0:00:00]} Kg8 {[%emt 0:00:07]} 47. Qe6+ {[%emt 0:00:00]} (47. Qg4 $142 Kh7 48. Qg2) 47... Kh7 $18 {[%emt 0:00:09]} 48. Qh3+ {[%emt 0:00:00]} Kg8 {[%emt 0:00:08]} 49. Qh2 {[%emt 0:00:00]} (49. Qc8+ $142 Kh7 50. Qh3+) 49... Ra2 $18 {[%emt 0:00:19]} 50. Qb8+ {[%emt 0:00:00]} Kh7 {[%emt 0:00:06]} 51. Qh2+ {[%emt 0:00:00]} Kg8 {[%emt 0:00:03]} 52. Qc7 {[%emt 0:00:00]} Kh7 {[%emt 0:00:30]} 53. Qd7 {[%emt 0:00:00]} Rc2 {[%emt 0:07:18]} (53... Be3 $18 54. Qh3+ Bh6) 54. Qh3+ {[%emt 0:00:00]} Kg8 {[%emt 0:00:06]} 55. Qe6+ {[%emt 0:00:00]} (55. f4 $142 Bg3 56. Qxg3 Rc5 57. Qb3+ Kh7 58. Qa3 Rf5 59. a7 Rxf4+ 60. Kg2) 55... Kh7 $18 {[%emt 0:00:04]} 56. Qh3+ {[%emt 0:00:00]} (56. f4 $18 Bh4 57. Qg4 Rc1+ 58. Ke2) 56... Kg8 {[%emt 0:00:05]} 57. Qg4 {[%emt 0:00:00]} (57. f4 $142 Bg3 58. Qxg3 Rc1+ {[#]} 59. Qe1 $3 {[%mdl 512]} Rc7 60. Qe5 Rc1+ 61. Kf2 Kf7 62. a7) 57... Ba7 $18 {[%emt 0:03:05]} 58. Qd7 {[%emt 0:00:00]} Rc1+ {[%emt 0:04:59]} 59. Ke2 {[%emt 0:00:17]} Bg1 {[%emt 0:00:03]} 60. Qd8+ {[%emt 0:04:18]} Kh7 {[%emt 0:00:24]} 61. Qh4+ {[%emt 0:00:06]} Kg8 {[%emt 0:00:15]} 62. Qd8+ {[%emt 0:00:08]} (62. Qg5 $142 Ra1 63. Qxg6) 62... Kh7 $18 {[%emt 0:00:05]} 63. Qh4+ {[%emt 0:00:15]} (63. Qg5 $142 Ra1 64. Qh4+ Kg8 65. Qg4) 63... Kg8 $18 {[%emt 0:00:09]} 64. Qg5 {[%emt 0:00:31]} Rb1 {[%emt 0:02:20]} 65. Qxg6 {[%emt 0:00:42]} Rb6 {[%emt 0:00:04]} 66. Qe8+ {[%emt 0:03:08]} Kh7 {[%emt 0:00:02]} 67. Qh5+ {[%emt 0:00:20]} Kg8 {[%emt 0:00:01]} 68. Qd5+ {[%emt 0:01:25]} Kh7 {[%emt 0:01:53]} 69. Qe4+ {[%emt 0:00:29]} Kh6 {[%emt 0:03:11]} 70. Qh4+ {[%emt 0:01:18]} Kg6 {[%emt 0:00:01]} 71. Qa4 {[%emt 0:00:32]} Re6+ {[%emt 0:01:13]} 72. Kd3 {[%emt 0:00:32]} Ba7 {[%emt 0:01:53]} 73. Qg4+ {[%emt 0:01:12]} Kf6 {[%emt 0:00:27]} 74. Qf4+ {[%emt 0:00:22]} Kg6 {[%emt 0:00:01]} 75. Qg4+ {[%emt 0:00:08]} Kf6 {[%emt 0:00:09]} 76. Qf4+ {[%emt 0:00:12]} Kg6 {[%emt 0:00:09]} 77. Qc4 {[%emt 0:00:32]} Re3+ {[%emt 0:05:13]} 78. Kc2 {[%emt 0:00:15]} Re7 {[%emt 0:00:03]} 79. Qc6+ {[%emt 0:00:52]} Kf7 {[%emt 0:00:15]} 80. f4 {[%emt 0:00:44]} g6 {[%emt 0:01:16]} 81. Qc8 {[%emt 0:00:28]} Kg7 {[%emt 0:02:27]} 82. Qd8 {[%emt 0:00:59]} Rf7 {[%emt 0:00:07]} 83. Qd6 {[%emt 0:00:13]} Kh7 {[%emt 0:00:59]} 84. Kd3 {[%emt 0:00:28]} Kg7 {[%emt 0:00:10]} 85. Qe5+ {[%emt 0:00:23]} Kh7 {[%emt 0:00:04]} 86. Ke4 {[%emt 0:00:35]} Bg1 {[%emt 0:00:26]} 87. Kf3 {[%emt 0:00:44]} Ba7 {[%emt 0:01:10]} 88. Kg4 {[%emt 0:00:49]} Bg1 {[%emt 0:00:44]} 89. Qc3 {[%emt 0:01:26]} (89. Qb5 $142 Ba7 90. Qb2 Be3 91. Qb3 Rxf4+ 92. Kg3 Rf6 93. Qxe3 Rxa6 94. Qe7+ Kh6 95. Qf8+ Kh7 96. Qf7+ Kh6 97. Qf3) 89... Ba7 $18 {[%emt 0:00:14]} 90. Qh3+ {[%emt 0:00:13]} Kg7 {[%emt 0:00:03]} 91. Qc3+ {[%emt 0:00:05]} Kh7 $1 {[%emt 0:00:08]} 92. Qa1 {[%emt 0:00:52]} Bb8 {[%emt 0:00:47]} 93. Qh1+ {[%emt 0:00:20]} (93. Qc1 $142 Ba7 94. Qb2) 93... Kg7 $18 {[%emt 0:00:09]} 94. Qa1+ {[%emt 0:00:08]} (94. Qc1 $142 Ba7 95. Qa1+ Kh7 96. Qb2) 94... Kh7 $18 {[%emt 0:00:05]} 95. Qd4 {[%emt 0:00:30]} Ba7 {[%emt 0:00:05]} 96. Qd5 {[%emt 0:00:45]} Kg7 {[%emt 0:00:10]} 97. Kf3 {[%emt 0:00:41]} Bb8 {[%emt 0:00:26]} 98. Qg5 {[%emt 0:00:57]} Ba7 {[%emt 0:01:28]} 99. Ke4 {[%emt 0:00:41]} Bb8 {[%emt 0:01:47]} 100. Qg3 {[%emt 0:01:09]} Ba7 {[%emt 0:01:22]} 101. Qc3+ {[%emt 0:00:35]} Kh7 {[%emt 0:00:17]} 102. Qh3+ {[%emt 0:00:06]} (102. Ke5 $142 Bf2 103. Ke6) 102... Kg7 $18 {[%emt 0:00:03]} 103. Qc3+ {[%emt 0:00:05]} (103. Qg3 $142 Rd7 104. Qh3) 103... Kh7 $1 $18 {[%emt 0:00:06]} 104. Qb2 {[%emt 0:01:48]} (104. Kd5 $142 Bf2 105. Ke6) 104... Kg8 $18 {[%emt 0:01:09]} 105. Qb3 {[%emt 0:00:56]} Kg7 {[%emt 0:00:11]} 106. Qb2+ {[%emt 0:00:03]} Kg8 $1 {[%emt 0:00:08]} 107. Ke5 {[%emt 0:00:20]} Be3 $2 {[%emt 0:00:59]} (107... Rf5+ 108. Ke6 Rxf4) 108. Qb4 $18 {[%emt 0:01:07]} Kg7 {[%emt 0:01:03]} 109. Ke6 {[%emt 0:00:49]} Ba7 {[%emt 0:01:07]} 110. Qc3+ {[%emt 0:00:24]} Kg8 {[%emt 0:00:02]} 111. Qc8+ {[%emt 0:00:20]} (111. Qc1 $142 Rg7 112. Qc6) 111... Kg7 $18 {[%emt 0:00:02]} 112. Qc3+ {[%emt 0:00:04]} (112. Qd8 $142) 112... Kg8 $18 {[%emt 0:00:09]} 113. Qe5 {[%emt 0:00:50]} Bf2 {[%emt 0:00:58]} 114. Qb8+ {[%emt 0:00:11]} Rf8 {[%emt 0:00:11]} 115. Qc7 {[%emt 0:00:53]} Bd4 {[%emt 0:04:19]} 116. Qc4 {[%emt 0:00:44]} Be3 {[%emt 0:01:36]} 117. Ke7+ {[%emt 0:00:12]} 1-0

[Event "Teplice Open 2022"]
[Site "Teplice"]
[Date "2022.06.24"]
[Round "7.7"]
[White "Azarov, Sergei"]
[Black "Karthik Venkataraman"]
[Result "0-1"]
[ECO "B99"]
[WhiteElo "2588"]
[BlackElo "2480"]
[Annotator "TA"]
[PlyCount "77"]
[EventDate "2022.06.18"]
[EventType "swiss"]
[EventCountry "CZE"]
[SourceTitle "playchess.com"]
[Source "ChessBase"]
[SourceQuality "1"]
[TimeControl "40/5400+30:1800+30"]

{[%evp 22,77,0,-3,-7,-32,13,-12,21,14,23,22,51,51,67,65,52,33,50,34,25,18,22,40,25,30,35,37,27,27,32,0,0,0,0,0,0,0,0,0,0,0,0,0,0,-116,-112,-133,-204,-199,9,6,19,-700,-687,-632,-627,-29988]} 1. e4 {[%emt 0:00:03]} c5 {[%emt 0:00:44]} 2. Nf3 {[%emt 0:00:05]} d6 {[%emt 0:00:05]} 3. d4 {[%emt 0:00:12]} cxd4 {[%emt 0:00:04]} 4. Nxd4 {[%emt 0:00:07]} Nf6 {[%emt 0:00:04]} 5. Nc3 {[%emt 0:00:12]} a6 {[%emt 0:00:05]} 6. Bg5 {[%emt 0:00:15]} e6 {[%emt 0:00:06]} 7. f4 {[%emt 0:00:26]} Be7 {[%emt 0:00:13]} 8. Qf3 {[%emt 0:00:47]} Qc7 {[%emt 0:00:06]} 9. O-O-O {[%emt 0:00:49]} Nbd7 {[%emt 0:00:11]} 10. Bd3 {[%emt 0:02:32]} b5 {[%emt 0:00:13] 10...b5 scores better than 10...h6.} 11. Rhe1 {[%emt 0:02:59]} Bb7 {[%emt 0:00:06]} 12. Kb1 {[%emt 0:04:09]} Qb6 {[%emt 0:00:16] B99: Sicilian Najdorf: 6 Bg5 e6 7 f4 Be7 8 Qf3 Qc7 9 0-0-0 Nbd7.} 13. Nb3 {[%emt 0:11:48]} Rc8 {[%emt 0:00:26]} (13... b4 $5 {[%cal Rb4c3]} 14. Na4 Qc7 $15) 14. f5 {[%emt 0:13:44] [#]} e5 $146 {[%emt 0:06:22][%cal Oc8c3] The position is equal.} ({Predecessor:} 14... Rxc3 15. bxc3 e5 16. Bc1 Qc7 17. Bb2 Nb6 18. g4 Nfd7 19. Bf1 Na4 20. Ba1 Ndb6 {1-0 (46) Della Morte,G (2383)-Veloso,P (2005) Sao Paulo 2009}) 15. Be3 {[%emt 0:03:44]} Qc7 {[%emt 0:02:47]} 16. a3 {[%emt 0:11:03]} Nb6 {[%emt 0:14:49]} 17. g4 {[%emt 0:02:50]} Na4 {[%emt 0:03:55]} 18. Nxa4 {[%emt 0:26:09]} bxa4 {[%emt 0:00:05]} 19. Nd2 {[%emt 0:00:05]} h6 {[%emt 0:08:14]} 20. Qe2 {[%emt 0:07:37]} (20. h4 $5 {[%cal Rg4g5]}) 20... d5 {[%emt 0:02:02]} 21. exd5 {[%emt 0:01:53]} Nxd5 {[%emt 0:00:46]} 22. Ne4 {[%emt 0:01:48]} O-O {[%emt 0:02:18]} 23. g5 {[%emt 0:01:05]} Nxe3 {[%emt 0:07:40]} 24. Qxe3 {[%emt 0:00:10]} Bxe4 {[%emt 0:00:38]} 25. Qxe4 {[%emt 0:00:20]} Bxg5 {[%emt 0:00:05]} 26. f6 {[%emt 0:03:16][%csl Gd3][%cal Re4h7]} g6 {[%emt 0:00:18]} 27. h4 {[%emt 0:00:21][%cal Bh2h4,Bh4h5,Bh5g6][%mdl 32]} Bxf6 {[%emt 0:00:36]} 28. h5 $1 {[%emt 0:00:06]} Bg7 {[%emt 0:00:24]} 29. hxg6 {[%emt 0:01:24]} f5 {[%emt 0:00:24][%cal Bf7f5,Bf5f4,Bf4f3,Bf3f2][%mdl 32]} 30. Qxa4 {[%emt 0:00:35]} Kh8 {[%emt 0:02:34]} 31. Bxa6 {[%emt 0:03:30]} Rb8 {[%emt 0:00:21] aiming for ...e4.} 32. Bb5 {[%emt 0:00:55]} e4 $40 {[%emt 0:02:47][%mdl 128] Hoping for ...Qe5. Black attacks.} 33. c4 {[%emt 0:00:10]} (33. Qb4 $11 {remains equal.}) 33... Qe5 $1 $17 {[%emt 0:00:08][%csl Gg7][%cal Re5b2]} 34. Qb3 {[%emt 0:00:54]} f4 $1 {[%emt 0:01:59]} 35. Rd5 {[%emt 0:00:20]} Qf6 {[%emt 0:00:19]} (35... Qe6 $19 {Threatens to win with ...f3.} 36. Rd2 Qxg6) 36. Rxe4 $11 {[%emt 0:01:25] White wants to play Qc2.} f3 $1 {[%emt 0:00:04]} 37. Re1 $2 {[%emt 0:00:05][%mdl 8192] [#]} (37. Rd1 $11) 37... f2 $1 $19 {[%emt 0:00:57]} 38. Rf1 {[%emt 0:00:01] [#] Strongly threatening Qc2.} Rfe8 $1 {[%emt 0:00:16][%mdl 64] Pin} 39. Rdd1 {[%emt 0:01:34] Prevents Re1.  Weighted Error Value: White=0.29 (precise) /Black=0.16 (very precise)} 0-1

[Event "Teplice Open 2022"]
[Site "Teplice"]
[Date "2022.06.24"]
[Round "7.8"]
[White "Sokolovsky, Yahli"]
[Black "Romanov, Evgeny"]
[Result "1/2-1/2"]
[ECO "B41"]
[WhiteElo "2369"]
[BlackElo "2573"]
[Annotator "TA"]
[PlyCount "80"]
[EventDate "2022.06.18"]
[EventType "swiss"]
[EventCountry "CZE"]
[SourceTitle "playchess.com"]
[Source "ChessBase"]
[SourceQuality "1"]
[TimeControl "40/5400+30:1800+30"]

{[%evp 14,80,50,39,64,54,89,40,57,46,26,10,56,56,74,39,38,39,41,0,45,46,46,28,16,0,54,0,45,7,6,0,8,8,11,5,0,0,0,0,0,0,6,10,29,37,34,36,42,19,31,0,0,0,0,0,0,0,0,0,19,19,21,0,0,0,0,0,8]} 1. e4 {[%emt 0:00:03]} c5 {[%emt 0:05:47]} 2. Nf3 {[%emt 0:00:09]} e6 {[%emt 0:00:06]} 3. d4 {[%emt 0:00:05]} cxd4 {[%emt 0:00:04]} 4. Nxd4 {[%emt 0:00:06]} a6 {[%emt 0:00:04]} 5. c4 {[%emt 0:02:02]} Nf6 {[%emt 0:00:09]} 6. Nc3 {[%emt 0:00:10]} Qc7 {[%emt 0:00:22]} 7. Be2 {[%emt 0:00:27]} b6 {[%emt 0:01:50]} 8. Be3 {[%emt 0:01:44]} Bb7 {[%emt 0:00:33] B41: Sicilian: Kan Variation: 5 c4.} 9. f3 {[%emt 0:00:22] White is more active.} Bd6 {[%emt 0:04:25]} 10. g3 {[%emt 0:07:52]} (10. Qd2 $16 Bf8 11. Nc2) 10... Nc6 {[%emt 0:02:25] White is slightly better.} 11. Qd2 {[%emt 0:02:35][%cal Oc3b5] [#] Hoping for Ncb5!} Be5 {[%emt 0:03:11] [#]} 12. Rc1 $146 {[%emt 0:11:59]} ({Predecessor:} 12. Nb3 O-O 13. Na4 b5 14. cxb5 axb5 15. Bxb5 d5 16. Rc1 Qb8 17. Nbc5 Ne7 18. f4 {1-0 (25) Vidit,S (2722)-Aronian,L (2772) Kolkata 2019}) 12... Nxd4 {[%emt 0:07:03]} (12... h5 $11) 13. Bxd4 $14 {[%emt 0:00:05]} h5 {[%emt 0:00:31]} 14. Qe3 {[%emt 0:15:34]} Bxd4 {[%emt 0:13:00]} 15. Qxd4 {[%emt 0:00:05]} h4 {[%emt 0:00:38]} 16. Kf2 {[%emt 0:08:38]} d6 {[%emt 0:02:00]} 17. b4 {[%emt 0:09:26]} Rb8 {[%emt 0:05:59]} 18. Na4 {[%emt 0:06:25]} Bc6 {[%emt 0:01:33]} 19. Nc3 {[%emt 0:11:14]} Ba8 {[%emt 0:01:34]} (19... Bb7 $1 $11) 20. Na4 {[%emt 0:01:49]} ({White should play} 20. Rcd1 $14) 20... Ke7 {[%emt 0:07:20]} (20... Bc6 $5 {[%cal Rc6a4]} 21. Nc3 hxg3+ 22. hxg3 Rxh1 23. Rxh1 Ke7 $16) 21. Kg2 {[%emt 0:05:24]} g5 {[%emt 0:04:19][%cal Og5g4]} 22. c5 {[%emt 0:02:00]} dxc5 {[%emt 0:18:30]} 23. bxc5 {[%emt 0:00:49] Really sharp!} b5 {[%emt 0:00:30]} 24. Qd6+ {[%emt 0:03:26]} Qxd6 {[%emt 0:00:06]} 25. cxd6+ {[%emt 0:00:02]} Kxd6 {[%emt 0:00:09]} 26. Rhd1+ {[%emt 0:00:49]} Ke7 {[%emt 0:00:08][%cal Bd6e7,Be7f8,Bf8g7][%mdl 32]} 27. Rc7+ {[%emt 0:00:35]} Kf8 $132 {[%emt 0:00:10][%mdl 2048] Black has counterplay} 28. Nc5 {[%emt 0:00:25]} g4 {[%emt 0:00:21]} 29. Nxa6 {[%emt 0:06:45]} Re8 {[%emt 0:04:47]} 30. Nc5 {[%emt 0:00:08]} ({Of course not} 30. Bxb5 gxf3+ 31. Kxf3 Bxe4+ 32. Kf4 Ra8 $15) 30... hxg3 {[%emt 0:04:20]} 31. hxg3 {[%emt 0:00:13]} (31. Kxg3 $5 {[%cal Rf3g4]} Rh3+ 32. Kg2 $16) 31... Rh5 {[%emt 0:01:16]} 32. Nd7+ {[%emt 0:02:14]} Kg7 {[%emt 0:00:25] The position is equal.} 33. Nxf6 {[%emt 0:00:15]} Kxf6 {[%emt 0:00:07]} 34. Rdd7 {[%emt 0:01:16]} Rf8 {[%emt 0:02:29]} 35. a3 {[%emt 0:02:14]} Re5 {[%emt 0:03:20]} 36. Bd3 {[%emt 0:00:07]} gxf3+ {[%emt 0:05:01]} 37. Kxf3 {[%emt 0:00:01]} Rf5+ {[%emt 0:00:28]} 38. Kg2 {[%emt 0:00:51]} (38. Ke3 $5 {[%cal Re4f5]} Rh5 39. Kf4 $14) 38... Kg6 {[%emt 0:02:29]} 39. Ra7 {[%emt 0:00:45][%cal Oa7a8] [#] Strongly threatening Rxa8!} Re5 {[%emt 0:00:10]} 40. Kf3 {[%emt 0:00:34]} Rc5 {[%emt 0:02:07] Weighted Error Value: White=0.12 (very precise) /Black=0.14 (very precise)} 1/2-1/2

[Event "Teplice Open 2022"]
[Site "Teplice"]
[Date "2022.06.24"]
[Round "7.9"]
[White "Sanal, Vahap"]
[Black "Seo, Jung Min"]
[Result "1-0"]
[ECO "E54"]
[WhiteElo "2575"]
[BlackElo "2483"]
[Annotator "TA"]
[PlyCount "135"]
[EventDate "2022.06.18"]
[EventType "swiss"]
[EventCountry "CZE"]
[SourceTitle "playchess.com"]
[Source "ChessBase"]
[SourceQuality "1"]
[TimeControl "40/5400+30:1800+30"]

{[%evp 21,134,0,11,0,14,0,14,0,24,8,23,-8,-12,-13,35,29,22,29,58,-32,152,62,63,63,80,72,88,79,130,130,144,152,148,149,141,131,130,122,135,129,132,123,122,122,122,122,122,123,133,123,131,123,145,124,124,124,124,124,151,151,154,137,158,116,127,140,164,165,164,164,148,145,168,166,208,208,218,211,211,208,210,222,219,222,218,222,212,216,219,212,202,196,247,245,245,245,220,229,233,229,286,270,252,222,218,216,423,389,681,672,672,535,29981,4594,29999]} 1. c4 {[%emt 0:01:50]} Nf6 {[%emt 0:00:28]} 2. Nc3 {[%emt 0:00:11]} e6 {[%emt 0:00:47]} 3. d4 {[%emt 0:01:29]} Bb4 {[%emt 0:00:04]} 4. e3 {[%emt 0:02:12]} O-O {[%emt 0:01:22]} 5. Bd3 {[%emt 0:00:42]} d5 {[%emt 0:00:22]} 6. a3 {[%emt 0:00:25]} Bxc3+ {[%emt 0:00:35]} 7. bxc3 {[%emt 0:00:08]} dxc4 {[%emt 0:00:04]} 8. Bxc4 {[%emt 0:00:09]} c5 {[%emt 0:00:03]} 9. Nf3 {[%emt 0:00:56]} Qc7 {[%emt 0:02:37]} 10. Ba2 {[%emt 0:00:16]} b6 {[%emt 0:01:43]} 11. O-O {[%emt 0:00:09]} Bb7 {[%emt 0:01:06] 11...Nbd7 is not played anymore.} 12. Re1 {[%emt 0:00:30] was the old line (12.Nd2). E54: Nimzo-Indian: Rubinstein: Main Line: 7...dxc4 8 Bxc4.} Nbd7 {[%emt 0:00:39]} 13. Bb2 {[%emt 0:01:31] [#]} Rac8 $146 {[%emt 0:07:49]} ({Predecessor:} 13... b5 14. c4 bxc4 15. Bxc4 Rab8 16. Qe2 Nb6 17. dxc5 Bxf3 18. Qxf3 Qxc5 19. Bf1 e5 {1-0 (32) Korobov,A (2705)-Nielsen,P (2662) Eilat 2012}) 14. Rc1 {[%emt 0:07:33] The position is equal.} Rfd8 {[%emt 0:03:21]} 15. Nd2 {[%emt 0:01:06]} (15. c4 $5 {[%cal Rd4d5]}) 15... b5 {[%emt 0:06:10]} 16. e4 {[%emt 0:04:08]} Nb6 {[%emt 0:01:27]} 17. Bb3 {[%emt 0:00:35] Against Na4} e5 {[%emt 0:02:56]} (17... Nc4 $11 {is more appropriate.} 18. Bxc4 (18. Nxc4 bxc4 19. Bxc4 Bxe4 $15) 18... bxc4) 18. d5 $14 {[%emt 0:02:32]} c4 {[%emt 0:00:31]} 19. Bc2 {[%emt 0:00:11]} Nbd7 {[%emt 0:06:45]} 20. a4 {[%emt 0:01:36]} (20. Rb1 $14) 20... a6 $2 {[%emt 0:00:25]} (20... b4 $1 $15 {stays ahead.}) 21. axb5 {[%emt 0:01:37]} (21. Ba3 $1 $16) 21... axb5 {[%emt 0:00:01][%cal Ob5b4]} 22. Ba3 {[%emt 0:00:27]} Nc5 {[%emt 0:06:05]} 23. Qe2 {[%emt 0:02:33]} Ne8 {[%emt 0:03:25]} 24. Qe3 {[%emt 0:03:08]} Nd6 {[%emt 0:00:53]} ({Better is} 24... Rd6) 25. Ra1 $16 {[%emt 0:01:12]} Nb3 {[%emt 0:09:41]} 26. Nxb3 {[%emt 0:09:11]} cxb3 {[%emt 0:00:04]} 27. Bxb3 {[%emt 0:00:12]} Qxc3 {[%emt 0:00:11]} 28. Qxc3 {[%emt 0:00:25]} Rxc3 {[%emt 0:00:02] [#]} 29. Rab1 {[%emt 0:00:35]} Rcc8 {[%emt 0:08:10]} 30. f3 {[%emt 0:00:54]} Ra8 {[%emt 0:09:27]} 31. Bb4 {[%emt 0:01:09]} f6 {[%emt 0:02:20]} 32. Rec1 {[%emt 0:01:46] aiming for Rc7.} Nc4 {[%emt 0:00:59]} 33. Bxc4 {[%emt 0:04:45]} bxc4 {[%emt 0:00:01]} 34. Rxc4 {[%emt 0:00:11]} Ba6 {[%emt 0:00:18]} 35. Rc7 {[%emt 0:04:40]} Bd3 {[%emt 0:01:18]} 36. Rd1 {[%emt 0:00:42]} Be2 {[%emt 0:00:13]} 37. Rd2 {[%emt 0:00:28]} Bb5 {[%emt 0:00:31]} 38. Rb2 {[%emt 0:01:02] White is more active.} Rd7 {[%emt 0:00:55]} 39. Rc5 {[%emt 0:01:18]} Bd3 {[%emt 0:00:13]} 40. Rc3 {[%emt 0:02:13]} Ba6 {[%emt 0:00:32]} 41. Ra2 {[%emt 0:30:18]} Rb8 {[%emt 0:31:25]} 42. Bc5 {[%emt 0:02:58]} Rb1+ {[%emt 0:00:35]} 43. Kf2 {[%emt 0:00:04]} Bb5 {[%emt 0:00:49]} 44. Ra8+ {[%emt 0:00:54]} Kf7 {[%emt 0:00:00]} 45. Rb8 {[%emt 0:00:08]} h5 {[%emt 0:01:13]} 46. h4 {[%emt 0:01:18]} Kg6 {[%emt 0:02:58]} 47. Rb6 {[%emt 0:02:23]} Kf7 {[%emt 0:01:19]} 48. Kg3 {[%emt 0:02:38]} Kg6 {[%emt 0:05:15]} 49. Be3 {[%emt 0:06:40]} Kf7 {[%emt 0:01:18]} 50. Bf2 {[%emt 0:07:53]} Kg6 {[%emt 0:03:25]} 51. d6 {[%emt 0:06:59] Black must now prevent Rc7.} Kf7 {[%emt 0:03:46]} 52. Rc7 {[%emt 0:00:12]} Ke6 {[%emt 0:00:03]} 53. Rbb7 {[%emt 0:04:17] Hoping for Rxd7.} Rxc7 {[%emt 0:00:06]} 54. dxc7 $18 {[%emt 0:00:04][%mdl 4096] Endgame KRB-KRB} ({Inferior is} 54. Rxc7 Bd7 $11) 54... Kd7 {[%emt 0:00:03]} 55. c8=Q+ {[%emt 0:00:34]} Kxc8 {[%emt 0:00:04]} 56. Rxg7 {[%emt 0:00:04]} Rd1 {[%emt 0:06:06]} (56... Rb3 $142 57. Rf7 Bd3 58. Rxf6 Bxe4) 57. Rf7 {[%emt 0:00:53]} Rd6 {[%emt 0:00:28] [#]} 58. Rf8+ $1 {[%emt 0:00:08]} Kd7 {[%emt 0:00:40]} 59. Rh8 {[%emt 0:00:11]} Ke6 {[%emt 0:00:41]} 60. Rxh5 {[%emt 0:00:23]} Be8 {[%emt 0:00:22]} 61. Rh8 {[%emt 0:00:23]} Kf7 {[%emt 0:00:07]} 62. Rh7+ {[%emt 0:01:37]} Kg6 {[%emt 0:00:07]} 63. Re7 {[%emt 0:00:12]} Bd7 $2 {[%emt 0:00:06]} (63... Bb5 {might work better.} 64. Be3 Rd7) 64. Bc5 {[%emt 0:01:03]} Rd2 $2 {[%emt 0:00:07]} (64... Rd3 65. Kf2 Rd2+ 66. Ke3 Rc2) 65. Be3 {[%emt 0:00:12]} Rd1 {[%emt 0:00:08]} 66. Kf2 {[%emt 0:00:31][%cal Oh4h5] White threatens h5+! and mate.} Bc8 {[%emt 0:00:03]} 67. g4 {[%emt 0:00:08]} (67. h5+ $142 Kxh5 68. Rg7 Rd3 69. g4+ Bxg4 70. fxg4+ Kh4 71. Kf3 Rxe3+ 72. Kxe3) 67... Rd7 {[%emt 0:00:01]} 68. h5# {[%emt 0:00:09] Weighted Error Value: White=0.10 (very precise) /Black=0.18 (very precise)} 1-0